fUST/lending_fUST_20240519
["ID","MTS","AMOUNT","RATE_DAILY","PERIOD"]
[327476451,1716103854298,-500.0,0.00017534,2]
[327476452,1716103854308,-362.27573174,0.00017534,2]
[327476453,1716103854317,-500.0,0.00017534,2]
[327476454,1716103854326,-10697.46,0.00017534,2]
[327476455,1716103854336,-1112.96,0.00017534,2]
[327476456,1716103854345,-500.0,0.00017534,2]
[327476457,1716103854354,-3567.06,0.00017534,2]
[327476458,1716103854364,-729.07,0.00017534,2]
[327476459,1716103854458,-1723.41,0.00017534,2]
[327476460,1716103854468,-1016.84,0.00017808,2]
[327476461,1716103854477,-1484.68,0.00017808,2]
[327476462,1716103854486,-500.0,0.00017808,2]
[327476463,1716103854497,-646.71,0.00017808,2]
[327476464,1716103854506,-500.0,0.00017808,2]
[327476465,1716103854515,-500.0,0.00017808,2]
[327476466,1716103854525,-500.0,0.00017808,2]
[327476467,1716103854534,-500.0,0.00017808,2]
[327476468,1716103854543,-573.0,0.00017808,2]
[327476469,1716103854553,-500.0,0.00017808,2]
[327476470,1716103854562,-500.0,0.00017808,2]
[327476471,1716103854571,-500.0,0.00017808,2]
[327476472,1716103854580,-569.68859408,0.00017808,2]
[327476473,1716103854589,-841.18,0.00017808,2]
[327476474,1716103854598,-1269.35,0.00017808,2]
[327476475,1716103854609,-1065.39,0.00017808,2]
[327476476,1716103854618,-500.0,0.00017808,2]
[327476477,1716103854627,-749.12,0.00017808,2]
[327476478,1716103854636,-500.0,0.00017808,2]
[327476479,1716103854645,-236.014741,0.00017808,2]
[327476480,1716103854654,-236.014741,0.00017808,2]
[327476481,1716103854664,-236.014741,0.00017808,2]
[327476482,1716103854673,-236.014741,0.00017808,2]
[327476483,1716103854683,-535.76109489,0.00017808,2]
[327476484,1716103854692,-500.0,0.00017808,2]
[327476485,1716103854702,-500.18,0.00017808,2]
[327476486,1716103854711,-467.89387856,0.00017808,2]
[327476487,1716103854721,-500.0,0.00017808,2]
[327476488,1716103854730,-500.0,0.00017808,2]
[327476489,1716103854740,-2247.83,0.00017808,2]
[327476490,1716103854749,-500.0,0.00017808,2]
[327476491,1716103854759,-500.0,0.00017808,2]
[327476492,1716103854768,-500.0,0.00017808,2]
[327476493,1716103854778,-1011.76,0.00017808,2]
[327476494,1716103854787,-1091.31,0.00017808,2]
[327476495,1716103854796,-500.0,0.00017808,2]
[327476496,1716103854806,-530.57527786,0.00017808,2]
[327476497,1716103854815,-594.06,0.00017808,2]
[327476498,1716103854824,-743.63,0.00017808,2]
[327476499,1716103854834,-500.0,0.00017808,2]
[327476500,1716103854843,-500.0,0.00017808,2]
[327476501,1716103854853,-883.06,0.00017808,2]
[327476502,1716103854863,-1558.63,0.00017808,2]
[327476503,1716103854872,-500.0,0.00017808,2]
[327476504,1716103854881,-500.0,0.00017808,2]
[327476505,1716103854890,-1609.31,0.00017808,2]
[327476506,1716103854900,-500.0,0.00017808,2]
[327476507,1716103854909,-500.0,0.00017808,2]
[327476508,1716103854918,-2797.75,0.00017808,2]
[327476509,1716103854928,-611.8,0.00017808,2]
[327476510,1716103854937,-1137.38,0.00017808,2]
[327476511,1716103854948,-500.0,0.00017808,2]
[327476512,1716103854957,-826.48,0.00017808,2]
[327476513,1716103854966,-1849.95,0.00017808,2]
[327476514,1716103854976,-2376.47,0.00017808,2]
[327476515,1716103854985,-500.0,0.00017808,2]
[327476516,1716103854995,-500.0,0.00017808,2]
[327476517,1716103855005,-500.0,0.00017808,2]
[327476518,1716103855014,-2693.39,0.00017808,2]
[327476519,1716103855025,-1639.18,0.00017808,2]
[327476520,1716103855035,-1132.62,0.00017808,2]
[327476521,1716103855045,-500.0,0.00017808,2]
[327476522,1716103855054,-500.0,0.00017808,2]
[327476523,1716103855064,-629.73157845,0.00017808,2]
[327476524,1716103855073,-1329.91,0.00017808,2]
[327476525,1716103855084,-598.6,0.00017808,2]
[327476526,1716103855093,-500.0,0.00017808,2]
[327476527,1716103855103,-500.0,0.00017808,2]
[327476528,1716103855114,-500.0,0.00017808,2]
[327476529,1716103855123,-500.0,0.00017808,2]
[327476530,1716103855132,-500.0,0.00017808,2]
[327476531,1716103855142,-500.0,0.00017808,2]
[327476532,1716103855151,-500.0,0.00017808,2]
[327476533,1716103855165,-500.0,0.00017808,2]
[327476534,1716103855174,-500.0,0.00017808,2]
[327476535,1716103855184,-500.0,0.00017808,2]
[327476536,1716103855193,-436.82172589,0.00017808,2]
[327476537,1716103855203,-573.18,0.00017808,2]
[327476538,1716103855212,-500.0,0.00017808,2]
[327476539,1716103855222,-42479.62,0.00017808,2]
[327476540,1716103855231,-1956.67,0.00017808,2]
[327476541,1716103855240,-500.0,0.00017808,2]
[327476542,1716103855250,-500.0,0.00017808,2]
[327476543,1716103855259,-716.18,0.00017808,2]
[327476544,1716103855268,-5178.93,0.00017808,2]
[327476545,1716103855277,-500.0,0.00017808,2]
[327476546,1716103855286,-9192.61,0.00017808,2]
[327476547,1716103855295,-1368.82,0.00017808,2]
[327476548,1716103855304,-1593.19,0.00017808,2]
[327476549,1716103855314,-324.93031575,0.00017808,4]
[327476550,1716103855323,-500.0,0.00017808,2]
[327476551,1716103855332,-2341.24,0.00017808,2]
[327476552,1716103855341,-500.0,0.00017808,2]
[327476553,1716103855350,-500.0,0.00017808,2]
[327476554,1716103855359,-1198.04,0.00017808,2]
[327476555,1716103855369,-500.0,0.00017808,2]
[327476556,1716103855378,-530.96,0.00017808,2]
[327476557,1716103855388,-500.0,0.00017808,2]
[327476558,1716103855397,-24634.29,0.00017808,2]
[327476559,1716103855406,-500.0,0.00017808,2]
[327476560,1716103855415,-1281.76,0.00017808,2]
[327476561,1716103855424,-721.22,0.00017808,2]
[327476562,1716103855434,-2072.77,0.00017808,2]
[327476563,1716103855443,-500.0,0.00017808,2]
[327476564,1716103855453,-1003.99,0.00017808,2]
[327476565,1716103855462,-5272.45,0.00017808,2]
[327476566,1716103855472,-189.874512,0.00017808,2]
[327476567,1716103855482,-189.874512,0.00017808,2]
[327476568,1716103855491,-500.0,0.00017808,2]
[327476569,1716103855501,-189.874512,0.00017808,2]
[327476570,1716103855510,-189.874518,0.00017808,2]
[327476571,1716103855521,-2106.61,0.00017808,2]
[327476572,1716103855531,-500.0,0.00017808,2]
[327476573,1716103855540,-818.43,0.00017808,2]
[327476574,1716103855550,-500.0,0.00017808,2]
[327476575,1716103855559,-2689.25,0.00017808,2]
[327476576,1716103855568,-500.0,0.00017808,2]
[327476577,1716103855578,-843.03,0.00017808,2]
[327476578,1716103855587,-500.0,0.00017808,2]
[327476579,1716103855596,-972.81,0.00017808,2]
[327476580,1716103855605,-565.72357774,0.00017808,2]
[327476581,1716103855615,-1909.27,0.00017808,2]
[327476582,1716103855625,-1545.05,0.00017808,2]
[327476583,1716103855635,-2694.99,0.00017808,2]
[327476584,1716103855644,-654.12,0.00017808,2]
[327476585,1716103855653,-3670.68,0.00017808,2]
[327476586,1716103855663,-2455.19,0.00017808,2]
[327476587,1716103855672,-1059.89,0.00017808,2]
[327476588,1716103855682,-5999.56,0.00017808,2]
[327476589,1716103855691,-1647.54,0.00017808,2]
[327476590,1716103855701,-500.0,0.00017808,2]
[327476591,1716103855710,-568.91,0.00017808,2]
[327476592,1716103855719,-500.0,0.00017808,2]
[327476593,1716103855729,-2332.87,0.00017808,2]
[327476594,1716103855738,-660.52,0.00017808,2]
[327476595,1716103855747,-1707.02,0.00017808,2]
[327476596,1716103855758,-5805.35,0.00017808,2]
[327476597,1716103855768,-655.6,0.00017808,2]
[327476598,1716103855777,-1705.66,0.00017808,2]
[327476599,1716103855787,-664.76,0.00017808,2]
[327476600,1716103855796,-885.9,0.00017808,2]
[327476601,1716103855805,-503.94,0.00017808,2]
[327476602,1716103855815,-717.98,0.00017808,2]
[327476603,1716103855825,-6707.21,0.00017808,2]
[327476604,1716103855835,-500.0,0.00017808,2]
[327476605,1716103855844,-500.0,0.00017808,2]
[327476606,1716103855853,-10697.46,0.00017808,2]
[327476607,1716103855862,-1112.96,0.00017808,2]
[327476608,1716103855871,-500.0,0.00017808,2]
[327476609,1716103855880,-3567.06,0.00017808,2]
[327476610,1716103855891,-729.07,0.00017808,2]
[327476611,1716103855901,-1723.41,0.00017808,2]
[327476612,1716103855911,-10451.02330036,0.00017898,2]
[327476613,1716103855922,-7359.38575588,0.00018,2]
[327476614,1716103855931,-305.34348314,0.00018,2]
[327476615,1716103855940,-3945.28533072,0.00018,2]
[327476616,1716103855949,-8356.66836009,0.00018,7]
[327476617,1716103855959,-895.99360919,0.00018,2]
[327476618,1716103855968,-284.31361242,0.0001808,2]
[327476619,1716103855978,-908.23959745,0.0001808,2]
[327476620,1716103855988,-230.6100049,0.0001808,2]
[327476621,1716103855997,-580.82197,0.0001808,2]
[327476622,1716103856006,-1016.84,0.00018082,2]
[327476623,1716103856015,-1484.68,0.00018082,2]
[327476624,1716103856025,-500.0,0.00018082,2]
[327476625,1716103856034,-646.71,0.00018082,2]
[327476626,1716103856044,-500.0,0.00018082,2]
[327476627,1716103856055,-500.0,0.00018082,2]
[327476628,1716103856065,-500.0,0.00018082,2]
[327476629,1716103856076,-605.76139703,0.00018082,2]
[327476630,1716103856086,-573.0,0.00018082,2]
[327476631,1716103856097,-477.28398455,0.00018082,2]
[327476632,1716103856107,-500.0,0.00018082,2]
[327476633,1716103856117,-500.0,0.00018082,2]
[327476634,1716103856126,-841.18,0.00018082,2]
[327476635,1716103856135,-1269.35,0.00018082,2]
[327476636,1716103856144,-1065.39,0.00018082,2]
[327476637,1716103856155,-317.45220666,0.00018082,2]
[327476638,1716103856166,-749.12,0.00018082,2]
[327476639,1716103856175,-500.0,0.00018082,2]
[327476640,1716103856185,-236.014741,0.00018082,2]
[327476641,1716103856270,-236.014748,0.00018082,2]
[327476642,1716103856279,-500.0,0.00018082,2]
[327476643,1716103856288,-500.18,0.00018082,2]
[327476644,1716103856297,-500.0,0.00018082,2]
[327476645,1716103856306,-500.0,0.00018082,2]
[327476646,1716103856315,-2247.83,0.00018082,2]
[327476647,1716103856324,-500.0,0.00018082,2]
[327476648,1716103856334,-500.0,0.00018082,2]
[327476649,1716103856343,-500.0,0.00018082,2]
[327476650,1716103856352,-1011.76,0.00018082,2]
[327476651,1716103856362,-1091.31,0.00018082,2]
[327476652,1716103856371,-500.0,0.00018082,2]
[327476653,1716103856380,-594.06,0.00018082,2]
[327476654,1716103856390,-743.63,0.00018082,2]
[327476655,1716103856399,-500.0,0.00018082,2]
[327476656,1716103856408,-500.0,0.00018082,2]
[327476657,1716103856417,-883.06,0.00018082,2]
[327476658,1716103856426,-1558.63,0.00018082,2]
[327476659,1716103856434,-537.20374843,0.00018082,2]
[327476660,1716103856443,-500.0,0.00018082,2]
[327476661,1716103856452,-1609.31,0.00018082,2]
[327476662,1716103856462,-500.0,0.00018082,2]
[327476663,1716103856471,-500.0,0.00018082,2]
[327476664,1716103856480,-2797.75,0.00018082,2]
[327476665,1716103856489,-611.8,0.00018082,2]
[327476666,1716103856498,-1137.38,0.00018082,2]
[327476667,1716103856508,-500.0,0.00018082,2]
[327476668,1716103856518,-826.48,0.00018082,2]
[327476669,1716103856527,-1849.95,0.00018082,2]
[327476670,1716103856537,-2376.47,0.00018082,2]
[327476671,1716103856546,-500.0,0.00018082,2]
[327476672,1716103856555,-505.41668434,0.00018082,2]
[327476673,1716103856564,-500.0,0.00018082,2]
[327476674,1716103856573,-2693.39,0.00018082,2]
[327476675,1716103856583,-1639.18,0.00018082,2]
[327476676,1716103856591,-1132.62,0.00018082,2]
[327476677,1716103856600,-500.0,0.00018082,2]
[327476678,1716103856609,-500.0,0.00018082,2]
[327476679,1716103856619,-1329.91,0.00018082,2]
[327476680,1716103856628,-598.6,0.00018082,2]
[327476681,1716103856637,-500.0,0.00018082,2]
[327476682,1716103856647,-500.0,0.00018082,2]
[327476683,1716103856656,-500.0,0.00018082,2]
[327476684,1716103856667,-500.0,0.00018082,2]
[327476685,1716103856677,-500.0,0.00018082,2]
[327476686,1716103856686,-500.0,0.00018082,2]
[327476687,1716103856695,-353.80518295,0.00018082,2]
[327476688,1716103856706,-500.0,0.00018082,2]
[327476689,1716103856725,-500.0,0.00018082,2]
[327476690,1716103856737,-500.0,0.00018082,2]
[327476691,1716103856747,-573.18,0.00018082,2]
[327476692,1716103856757,-500.0,0.00018082,2]
[327476693,1716103856767,-42479.62,0.00018082,2]
[327476694,1716103856777,-1956.67,0.00018082,2]
[327476695,1716103856786,-500.0,0.00018082,2]
[327476696,1716103856795,-500.0,0.00018082,2]
[327476697,1716103856805,-716.18,0.00018082,2]
[327476698,1716103856815,-5178.93,0.00018082,2]
[327476699,1716103856829,-500.0,0.00018082,2]
[327476700,1716103856838,-9192.61,0.00018082,2]
[327476701,1716103856848,-1368.82,0.00018082,2]
[327476702,1716103856857,-1593.19,0.00018082,2]
[327476703,1716103856868,-306.93944879,0.00018082,2]
[327476704,1716103856877,-2341.24,0.00018082,2]
[327476705,1716103856886,-500.0,0.00018082,2]
[327476706,1716103856896,-500.0,0.00018082,2]
[327476707,1716103856905,-1198.04,0.00018082,2]
[327476708,1716103856914,-283.50185745,0.00018082,2]
[327476709,1716103856923,-530.96,0.00018082,2]
[327476710,1716103856935,-500.0,0.00018082,2]
[327476711,1716103856944,-24634.29,0.00018082,2]
[327476712,1716103856953,-500.0,0.00018082,2]
[327476713,1716103856962,-1281.76,0.00018082,2]
[327476714,1716103856972,-721.22,0.00018082,2]
[327476715,1716103856981,-2072.77,0.00018082,2]
[327476716,1716103856991,-500.0,0.00018082,2]
[327476717,1716103857000,-1003.99,0.00018082,2]
[327476718,1716103857009,-5272.45,0.00018082,2]
[327476719,1716103857019,-500.0,0.00018082,2]
[327476720,1716103857028,-2106.61,0.00018082,2]
[327476721,1716103857037,-500.0,0.00018082,2]
[327476722,1716103857047,-818.43,0.00018082,2]
[327476723,1716103857056,-500.0,0.00018082,2]
[327476724,1716103857065,-2689.25,0.00018082,2]
[327476725,1716103857074,-500.0,0.00018082,2]
[327476726,1716103857083,-843.03,0.00018082,2]
[327476727,1716103857093,-500.0,0.00018082,2]
[327476728,1716103857102,-972.81,0.00018082,2]
[327476729,1716103857112,-1909.27,0.00018082,2]
[327476730,1716103857121,-1545.05,0.00018082,2]
[327476731,1716103857130,-2694.99,0.00018082,2]
[327476732,1716103857140,-654.12,0.00018082,2]
[327476733,1716103857149,-3670.68,0.00018082,2]
[327476734,1716103857163,-2455.19,0.00018082,2]
[327476735,1716103857173,-1059.89,0.00018082,2]
[327476736,1716103857182,-5999.56,0.00018082,2]
[327476737,1716103857191,-1647.54,0.00018082,2]
[327476738,1716103857200,-500.0,0.00018082,2]
[327476739,1716103857209,-568.91,0.00018082,2]
[327476740,1716103857219,-500.0,0.00018082,2]
[327476741,1716103857228,-2332.87,0.00018082,2]
[327476742,1716103857237,-660.52,0.00018082,2]
[327476743,1716103857246,-1707.02,0.00018082,2]
[327476744,1716103857256,-5805.35,0.00018082,2]
[327476745,1716103857265,-655.6,0.00018082,2]
[327476746,1716103857275,-1705.66,0.00018082,2]
[327476747,1716103857284,-664.76,0.00018082,2]
[327476748,1716103857293,-885.9,0.00018082,2]
[327476749,1716103857302,-503.94,0.00018082,2]
[327476750,1716103857311,-717.98,0.00018082,2]
[327476751,1716103857320,-6707.21,0.00018082,2]
[327476752,1716103857329,-500.0,0.00018082,2]
[327476753,1716103857338,-500.0,0.00018082,2]
[327476754,1716103857347,-10697.46,0.00018082,2]
[327476755,1716103857357,-1112.96,0.00018082,2]
[327476756,1716103857367,-500.0,0.00018082,2]
[327476757,1716103857377,-3567.06,0.00018082,2]
[327476758,1716103857386,-729.07,0.00018082,2]
[327476759,1716103857394,-1723.41,0.00018082,2]
[327476760,1716103857404,-1016.84,0.00018356,2]
[327476761,1716103857413,-1484.68,0.00018356,2]
[327476762,1716103857422,-500.0,0.00018356,2]
[327476763,1716103857432,-646.71,0.00018356,2]
[327476764,1716103857441,-500.0,0.00018356,2]
[327476765,1716103857450,-500.0,0.00018356,2]
[327476766,1716103857459,-500.0,0.00018356,2]
[327476767,1716103857468,-573.0,0.00018356,2]
[327476768,1716103857477,-500.0,0.00018356,2]
[327476769,1716103857489,-500.0,0.00018356,2]
[327476770,1716103857499,-841.18,0.00018356,2]
[327476771,1716103857510,-1269.35,0.00018356,2]
[327476772,1716103857519,-1065.39,0.00018356,2]
[327476773,1716103857529,-749.12,0.00018356,2]
[327476774,1716103857538,-500.0,0.00018356,2]
[327476775,1716103857547,-500.0,0.00018356,2]
[327476776,1716103857556,-500.18,0.00018356,2]
[327476777,1716103857566,-500.0,0.00018356,2]
[327476778,1716103857576,-500.0,0.00018356,2]
[327476779,1716103857585,-2247.83,0.00018356,2]
[327476780,1716103857595,-500.0,0.00018356,2]
[327476781,1716103857605,-500.0,0.00018356,2]
[327476782,1716103857615,-500.0,0.00018356,2]
[327476783,1716103857623,-1011.76,0.00018356,2]
[327476784,1716103857634,-1091.31,0.00018356,2]
[327476785,1716103857644,-500.0,0.00018356,2]
[327476786,1716103857654,-743.63,0.00018356,2]
[327476787,1716103857662,-594.06,0.00018356,2]
[327476788,1716103857672,-405.35496611,0.00018356,2]
[327476789,1716103857681,-500.0,0.00018356,2]
[327476790,1716103857690,-883.06,0.00018356,2]
[327476791,1716103857699,-1558.63,0.00018356,2]
[327476792,1716103857708,-500.0,0.00018356,2]
[327476793,1716103857718,-1609.31,0.00018356,2]
[327476794,1716103857727,-500.0,0.00018356,2]
[327476795,1716103857736,-500.0,0.00018356,2]
[327476796,1716103857745,-2797.75,0.00018356,2]
[327476797,1716103857754,-611.8,0.00018356,2]
[327476798,1716103857763,-1137.38,0.00018356,2]
[327476799,1716103857773,-500.0,0.00018356,2]
[327476800,1716103857783,-826.48,0.00018356,2]
[327476801,1716103857793,-1849.95,0.00018356,2]
[327476802,1716103857802,-2376.47,0.00018356,2]
[327476803,1716103857811,-168.34484346,0.00018356,2]
[327476804,1716103857820,-500.0,0.00018356,2]
[327476805,1716103857829,-2693.39,0.00018356,2]
[327476806,1716103857838,-1639.18,0.00018356,2]
[327476807,1716103857847,-1132.62,0.00018356,2]
[327476808,1716103857930,-500.0,0.00018356,2]
[327476809,1716103857940,-233.29768449,0.00018356,2]
[327476810,1716103857949,-1329.91,0.00018356,2]
[327476811,1716103857959,-598.6,0.00018356,2]
[327476812,1716103857968,-500.0,0.00018356,2]
[327476813,1716103857977,-500.0,0.00018356,2]
[327476814,1716103857986,-236.30207499,0.00018356,2]
[327476815,1716103857997,-500.0,0.00018356,2]
[327476816,1716103858006,-500.0,0.00018356,2]
[327476817,1716103858016,-500.0,0.00018356,2]
[327476818,1716103858025,-500.0,0.00018356,2]
[327476819,1716103858034,-500.0,0.00018356,2]
[327476820,1716103858044,-500.0,0.00018356,2]
[327476821,1716103858053,-573.18,0.00018356,2]
[327476822,1716103858062,-500.0,0.00018356,2]
[327476823,1716103858071,-42479.62,0.00018356,2]
[327476824,1716103858080,-1956.67,0.00018356,2]
[327476825,1716103858090,-257.08858868,0.00018356,2]
[327476826,1716103858099,-203.31820558,0.00018356,2]
[327476827,1716103858108,-716.18,0.00018356,2]
[327476828,1716103858117,-5178.93,0.00018356,2]
[327476829,1716103858127,-500.0,0.00018356,2]
[327476830,1716103858136,-9192.61,0.00018356,2]
[327476831,1716103858145,-1368.82,0.00018356,2]
[327476832,1716103858154,-1593.19,0.00018356,2]
[327476833,1716103858167,-2341.24,0.00018356,2]
[327476834,1716103858176,-500.0,0.00018356,2]
[327476835,1716103858185,-500.0,0.00018356,2]
[327476836,1716103858195,-1198.04,0.00018356,2]
[327476837,1716103858204,-530.96,0.00018356,2]
[327476838,1716103858214,-426.23100569,0.00018356,2]
[327476839,1716103858223,-24634.29,0.00018356,2]
[327476840,1716103858232,-500.0,0.00018356,2]
[327476841,1716103858242,-1281.76,0.00018356,2]
[327476842,1716103858251,-721.22,0.00018356,2]
[327476843,1716103858260,-2072.77,0.00018356,2]
[327476844,1716103858270,-500.0,0.00018356,2]
[327476845,1716103858279,-1003.99,0.00018356,2]
[327476846,1716103858288,-5272.45,0.00018356,2]
[327476847,1716103858297,-500.0,0.00018356,2]
[327476848,1716103858307,-2106.61,0.00018356,2]
[327476849,1716103858316,-500.0,0.00018356,2]
[327476850,1716103858326,-818.43,0.00018356,2]
[327476851,1716103858335,-500.0,0.00018356,2]
[327476852,1716103858344,-2689.25,0.00018356,2]
[327476853,1716103858354,-500.0,0.00018356,2]
[327476854,1716103858363,-843.03,0.00018356,2]
[327476855,1716103858372,-500.0,0.00018356,2]
[327476856,1716103858382,-972.81,0.00018356,2]
[327476857,1716103858391,-1909.27,0.00018356,2]
[327476858,1716103858400,-1545.05,0.00018356,2]
[327476859,1716103858410,-2694.99,0.00018356,2]
[327476860,1716103858419,-654.12,0.00018356,2]
[327476861,1716103858428,-3670.68,0.00018356,2]
[327476862,1716103858437,-2455.19,0.00018356,2]
[327476863,1716103858446,-1059.89,0.00018356,2]
[327476864,1716103858455,-5999.56,0.00018356,2]
[327476865,1716103858465,-1647.54,0.00018356,2]
[327476866,1716103858475,-500.0,0.00018356,2]
[327476867,1716103858486,-568.91,0.00018356,2]
[327476868,1716103858496,-500.0,0.00018356,2]
[327476869,1716103858506,-2332.87,0.00018356,2]
[327476870,1716103858515,-660.52,0.00018356,2]
[327476871,1716103858526,-1707.02,0.00018356,2]
[327476872,1716103858537,-5805.35,0.00018356,2]
[327476873,1716103858548,-655.6,0.00018356,2]
[327476874,1716103858559,-1705.66,0.00018356,2]
[327476875,1716103858571,-664.76,0.00018356,2]
[327476876,1716103858581,-885.9,0.00018356,2]
[327476877,1716103858590,-503.94,0.00018356,2]
[327476878,1716103858601,-717.98,0.00018356,2]
[327476879,1716103858612,-6707.21,0.00018356,2]
[327476880,1716103858621,-500.0,0.00018356,2]
[327476881,1716103858630,-500.0,0.00018356,2]
[327476882,1716103858641,-10697.46,0.00018356,2]
[327476883,1716103858652,-1112.96,0.00018356,2]
[327476884,1716103858662,-500.0,0.00018356,2]
[327476885,1716103858671,-3567.06,0.00018356,2]
[327476886,1716103858685,-729.07,0.00018356,2]
[327476887,1716103858694,-1723.41,0.00018356,2]
[327476888,1716103858707,-1016.84,0.0001863,2]
[327476889,1716103858724,-1484.68,0.0001863,2]
[327476890,1716103858739,-500.0,0.0001863,2]
[327476891,1716103858748,-646.71,0.0001863,2]
[327476892,1716103858757,-500.0,0.0001863,2]
[327476893,1716103858767,-500.0,0.0001863,2]
[327476894,1716103858775,-500.0,0.0001863,2]
[327476895,1716103858784,-573.0,0.0001863,2]
[327476896,1716103858793,-500.0,0.0001863,2]
[327476897,1716103858803,-500.0,0.0001863,2]
[327476898,1716103858812,-841.18,0.0001863,2]
[327476899,1716103858821,-1269.35,0.0001863,2]
[327476900,1716103858830,-1065.39,0.0001863,2]
[327476901,1716103858839,-749.12,0.0001863,2]
[327476902,1716103858849,-500.0,0.0001863,2]
[327476903,1716103858858,-500.0,0.0001863,2]
[327476904,1716103858868,-500.18,0.0001863,2]
[327476905,1716103858877,-500.0,0.0001863,2]
[327476906,1716103858887,-417.30775617,0.0001863,2]
[327476907,1716103858896,-2247.83,0.0001863,2]
[327476908,1716103858905,-500.0,0.0001863,2]
[327476909,1716103858915,-500.0,0.0001863,2]
[327476910,1716103858924,-500.0,0.0001863,2]
[327476911,1716103858934,-1011.76,0.0001863,2]
[327476912,1716103858943,-1091.31,0.0001863,2]
[327476913,1716103858952,-500.0,0.0001863,2]
[327476914,1716103858962,-743.63,0.0001863,2]
[327476915,1716103858971,-594.06,0.0001863,2]
[327476916,1716103858980,-500.0,0.0001863,2]
[327476917,1716103858989,-883.06,0.0001863,2]
[327476918,1716103858999,-1558.63,0.0001863,2]
[327476919,1716103859008,-500.0,0.0001863,2]
[327476920,1716103859018,-1609.31,0.0001863,2]
[327476921,1716103859027,-500.0,0.0001863,2]
[327476922,1716103859036,-500.0,0.0001863,2]
[327476923,1716103859046,-2797.75,0.0001863,2]
[327476924,1716103859055,-611.8,0.0001863,2]
[327476925,1716103859065,-1137.38,0.0001863,2]
[327476926,1716103859074,-500.0,0.0001863,2]
[327476927,1716103859084,-826.48,0.0001863,2]
[327476928,1716103859093,-1849.95,0.0001863,2]
[327476929,1716103859103,-2376.47,0.0001863,2]
[327476930,1716103859113,-500.0,0.0001863,2]
[327476931,1716103859123,-2693.39,0.0001863,2]
[327476932,1716103859132,-1639.18,0.0001863,2]
[327476933,1716103859142,-1132.62,0.0001863,2]
[327476934,1716103859151,-500.0,0.0001863,2]
[327476935,1716103859164,-1329.91,0.0001863,2]
[327476936,1716103859173,-598.6,0.0001863,2]
[327476937,1716103859183,-500.0,0.0001863,2]
[327476938,1716103859194,-500.0,0.0001863,2]
[327476939,1716103859204,-500.0,0.0001863,2]
[327476940,1716103859213,-500.0,0.0001863,2]
[327476941,1716103859223,-500.0,0.0001863,2]
[327476942,1716103859235,-500.0,0.0001863,2]
[327476943,1716103859245,-500.0,0.0001863,2]
[327476944,1716103859255,-500.0,0.0001863,2]
[327476945,1716103859265,-573.18,0.0001863,2]
[327476946,1716103859275,-500.0,0.0001863,2]
[327476947,1716103859285,-42479.62,0.0001863,2]
[327476948,1716103859295,-1956.67,0.0001863,2]
[327476949,1716103859304,-716.18,0.0001863,2]
[327476950,1716103859313,-5178.93,0.0001863,2]